fUSD/lending_fUSD_20260514
["ID","MTS","AMOUNT","RATE_DAILY","PERIOD"]
[422209404,1778698238000,-500.0,0.00014317,2]
[422209400,1778698238000,-500.0,0.00014317,2]
[422209406,1778698238000,-500.0,0.00014317,2]
[422209402,1778698238000,-500.0,0.00014317,2]
[422209408,1778698238000,-500.0,0.00014317,2]
[422209412,1778698238000,-500.0,0.00014317,2]
[422209422,1778698238000,-150.0,0.00014317,2]
[422209416,1778698238000,-500.0,0.00014317,2]
[422209418,1778698238000,-500.0,0.00014317,2]
[422209420,1778698238000,-500.0,0.00014317,2]
[422209430,1778698238000,-500.0,0.00014317,2]
[422209424,1778698238000,-500.0,0.00014317,2]
[422209432,1778698238000,-500.0,0.00014317,2]
[422209426,1778698238000,-500.0,0.00014317,2]
[422209395,1778698238000,-500.0,0.00014317,2]
[422209414,1778698238000,-500.0,0.00014317,2]
[422209393,1778698238000,-150.0,0.00014317,2]
[422209375,1778698238000,-201.65980856,0.00014317,2]
[422209392,1778698238000,-500.0,0.00014317,2]
[422209373,1778698238000,-335.91476579,0.00014317,2]
[422209376,1778698238000,-536.0,0.00014317,2]
[422209428,1778698238000,-150.0,0.00014317,2]
[422209374,1778698238000,-334.34019144,0.00014317,2]
[422209377,1778698238000,-558.77980264,0.00014317,2]
[422209378,1778698238000,-91.56538609,0.00014317,2]
[422209379,1778698238000,-408.43461391,0.00014317,2]
[422209381,1778698238000,-500.0,0.00014317,2]
[422209391,1778698238000,-150.0,0.00014317,2]
[422209382,1778698238000,-286.77513069,0.00014317,2]
[422209385,1778698238000,-500.0,0.00014317,2]
[422209380,1778698238000,-500.0,0.00014317,2]
[422209383,1778698238000,-500.0,0.00014317,2]
[422209386,1778698238000,-500.0,0.00014317,2]
[422209387,1778698238000,-500.0,0.00014317,2]
[422209389,1778698238000,-500.0,0.00014317,2]
[422209388,1778698238000,-500.0,0.00014317,2]
[422209390,1778698238000,-325.89348617,0.00014317,2]
[422209384,1778698238000,-198.49447222,0.00014317,2]
[422209434,1778698238000,-150.0,0.00014317,2]
[422209410,1778698238000,-559.4850956,0.00014317,2]
[422209437,1778698238000,-167.83513648,0.00014317,2]
[422209487,1778698238000,-300.0,0.00014429,2]
[422209485,1778698238000,-300.0,0.00014429,2]
[422209489,1778698238000,-300.0,0.00014429,2]
[422209490,1778698238000,-300.0,0.00014429,2]
[422209493,1778698238000,-300.0,0.00014429,2]
[422209506,1778698238000,-165.269112,0.00014496,2]
[422209494,1778698238000,-2500.0,0.00014443,2]
[422209496,1778698238000,-6793.3795,0.00014455,2]
[422209481,1778698238000,-2500.0,0.00014429,2]
[422209498,1778698238000,-15253.59871753,0.00014459,2]
[422209501,1778698238000,-945.593282,0.00014471,2]
[422209503,1778698238000,-150.0,0.00014487,2]
[422209508,1778698238000,-1580.60151314,0.00014498,2]
[422209510,1778698238000,-10000.0,0.00014499,2]
[422209512,1778698238000,-243.05971163,0.00014504,2]
[422209516,1778698238000,-446.53624138,0.0001451,2]
[422209514,1778698238000,-499.25011,0.00014504,2]
[422209440,1778698238000,-500.0,0.00014317,2]
[422209499,1778698238000,-484.46,0.00014464,2]
[422209474,1778698238000,-2500.0,0.00014429,2]
[422209504,1778698238000,-5000.0,0.00014492,2]
[422209477,1778698238000,-2500.0,0.00014429,2]
[422209442,1778698238000,-500.0,0.00014317,2]
[422209483,1778698238000,-2500.0,0.00014429,2]
[422209446,1778698238000,-500.0,0.00014317,2]
[422209457,1778698238000,-250.0,0.00014357,2]
[422209456,1778698238000,-448.41821506,0.00014357,2]
[422209448,1778698238000,-500.0,0.00014317,2]
[422209452,1778698238000,-500.0,0.00014317,2]
[422209450,1778698238000,-176.32486522,0.00014317,2]
[422209454,1778698238000,-341.64803734,0.00014317,2]
[422209444,1778698238000,-252.82730704,0.00014317,2]
[422209463,1778698238000,-300.0,0.00014357,2]
[422209459,1778698238000,-384.22620767,0.00014357,2]
[422209469,1778698238000,-150.0,0.00014387,2]
[422209467,1778698238000,-166.66,0.00014384,2]
[422209479,1778698238000,-2500.0,0.00014429,2]
[422209465,1778698238000,-265.04593993,0.00014357,2]
[422209473,1778698238000,-15253.59871762,0.00014404,2]
[422209461,1778698238000,-300.0,0.00014357,2]
[422209471,1778698238000,-176.06175414,0.00014392,2]
[422209608,1778698239000,-211.70734342,0.00014598,2]
[422209600,1778698239000,-500.0,0.00014592,2]
[422209607,1778698239000,-500.0,0.00014592,2]
[422209603,1778698239000,-500.0,0.00014592,2]
[422209605,1778698239000,-500.0,0.00014592,2]
[422209590,1778698239000,-500.0,0.00014592,2]
[422209595,1778698239000,-521.49196449,0.00014592,2]
[422209588,1778698239000,-500.0,0.00014592,2]
[422209582,1778698239000,-500.0,0.00014592,2]
[422209610,1778698239000,-225.97029332,0.00014598,2]
[422209580,1778698239000,-500.0,0.00014592,2]
[422209592,1778698239000,-500.0,0.00014592,2]
[422209609,1778698239000,-500.0,0.00014598,2]
[422209617,1778698239000,-500.0,0.00014598,2]
[422209611,1778698239000,-341.75345154,0.00014598,2]
[422209613,1778698239000,-500.0,0.00014598,2]
[422209614,1778698239000,-317.12121192,0.00014598,2]
[422209616,1778698239000,-500.0,0.00014598,2]
[422209620,1778698239000,-500.0,0.00014598,2]
[422209618,1778698239000,-500.0,0.00014598,2]
[422209622,1778698239000,-500.0,0.00014598,2]
[422209615,1778698239000,-500.0,0.00014598,2]
[422209621,1778698239000,-500.0,0.00014598,2]
[422209624,1778698239000,-500.0,0.00014598,2]
[422209625,1778698239000,-500.0,0.00014598,2]
[422209623,1778698239000,-500.0,0.00014598,2]
[422209578,1778698239000,-500.0,0.00014592,2]
[422209612,1778698239000,-500.0,0.00014598,2]
[422209584,1778698239000,-500.0,0.00014592,2]
[422209543,1778698239000,-500.0,0.0001459,2]
[422209586,1778698239000,-500.0,0.00014592,2]
[422209518,1778698239000,-15253.59871753,0.00014514,2]
[422209520,1778698239000,-319.545372,0.00014514,2]
[422209531,1778698239000,-151.0,0.00014589,2]
[422209527,1778698239000,-157.71696169,0.00014589,2]
[422209530,1778698239000,-151.0,0.00014589,2]
[422209523,1778698239000,-150.0,0.00014537,2]
[422209525,1778698239000,-15253.59871753,0.00014569,2]
[422209533,1778698239000,-151.0,0.00014589,2]
[422209522,1778698239000,-6032.24949675,0.00014532,2]
[422209535,1778698239000,-500.0,0.0001459,2]
[422209539,1778698239000,-500.0,0.0001459,2]
[422209537,1778698239000,-500.0,0.0001459,2]
[422209541,1778698239000,-500.0,0.0001459,2]
[422209576,1778698239000,-500.0,0.00014592,2]
[422209545,1778698239000,-500.0,0.0001459,2]
[422209557,1778698239000,-500.0,0.00014592,2]
[422209549,1778698239000,-500.0,0.00014592,2]
[422209554,1778698239000,-500.0,0.00014592,2]
[422209551,1778698239000,-500.0,0.00014592,2]
[422209559,1778698239000,-500.0,0.00014592,2]
[422209555,1778698239000,-500.0,0.00014592,2]
[422209561,1778698239000,-500.0,0.00014592,2]
[422209565,1778698239000,-500.0,0.00014592,2]
[422209563,1778698239000,-500.0,0.00014592,2]
[422209567,1778698239000,-500.0,0.00014592,2]
[422209571,1778698239000,-500.0,0.00014592,2]
[422209569,1778698239000,-500.0,0.00014592,2]
[422209573,1778698239000,-500.0,0.00014592,2]
[422209547,1778698239000,-500.0,0.00014592,2]
[422209626,1778698239000,-500.0,0.00014598,2]
[422209619,1778698239000,-500.0,0.00014598,2]
[422209629,1778698239000,-500.0,0.00014598,2]
[422209661,1778698239000,-150.0,0.00014604,2]
[422209663,1778698239000,-500.0,0.00014604,2]
[422209664,1778698239000,-500.0,0.00014604,2]
[422209662,1778698239000,-175.06603521,0.00014604,2]
[422209665,1778698239000,-590.18579992,0.00014604,2]
[422209666,1778698239000,-150.0,0.00014604,2]
[422209669,1778698239000,-298.22225097,0.00014604,2]
[422209668,1778698239000,-150.0,0.00014604,2]
[422209671,1778698239000,-150.0,0.00014612,2]
[422209667,1778698239000,-150.0,0.00014604,2]
[422209672,1778698239000,-15253.59871753,0.00014624,2]
[422209670,1778698239000,-6032.24949674,0.00014606,2]
[422209673,1778698239000,-150.0,0.00014659,2]
[422209659,1778698239000,-150.0,0.00014604,2]
[422209677,1778698239000,-15253.59871753,0.0001468,2]
[422209676,1778698239000,-6032.24949674,0.00014679,2]
[422209674,1778698239000,-205.94617357,0.00014659,2]
[422209678,1778698239000,-150.0,0.00014687,2]
[422209680,1778698239000,-33166.2013,0.00014692,2]
[422209683,1778698239000,-210.51584055,0.00014701,2]
[422209685,1778698239000,-590.45530937,0.00014701,2]
[422209684,1778698239000,-500.0,0.00014701,2]
[422209681,1778698239000,-2000.0,0.00014699,2]
[422209682,1778698239000,-2256.8907,0.00014699,2]
[422209686,1778698239000,-243.05971162,0.00014702,2]
[422209688,1778698239000,-15253.59871753,0.00014735,2]
[422209689,1778698239000,-6032.24949674,0.00014753,2]
[422209627,1778698239000,-500.0,0.00014598,2]
[422209675,1778698239000,-5000.0,0.00014659,2]
[422209660,1778698239000,-272.71182553,0.00014604,2]
[422209679,1778698239000,-3826.7364,0.00014691,2]
[422209657,1778698239000,-150.0,0.00014604,2]
[422209655,1778698239000,-150.0,0.00014598,2]
[422209628,1778698239000,-500.0,0.00014598,2]
[422209631,1778698239000,-500.0,0.00014598,2]
[422209632,1778698239000,-500.0,0.00014598,2]
[422209633,1778698239000,-500.0,0.00014598,2]
[422209630,1778698239000,-500.0,0.00014598,2]
[422209636,1778698239000,-500.0,0.00014598,2]
[422209639,1778698239000,-321.05261047,0.00014598,2]
[422209637,1778698239000,-500.0,0.00014598,2]
[422209638,1778698239000,-500.0,0.00014598,2]
[422209635,1778698239000,-500.0,0.00014598,2]
[422209640,1778698239000,-500.0,0.00014598,2]
[422209642,1778698239000,-500.0,0.00014598,2]
[422209641,1778698239000,-500.0,0.00014598,2]
[422209634,1778698239000,-500.0,0.00014598,2]
[422209643,1778698239000,-500.0,0.00014598,2]
[422209658,1778698239000,-150.0,0.00014604,2]
[422209645,1778698239000,-500.0,0.00014598,2]
[422209656,1778698239000,-1500000.0,0.00014599,2]
[422209654,1778698239000,-578.64878065,0.00014598,2]
[422209652,1778698239000,-500.0,0.00014598,2]
[422209648,1778698239000,-500.0,0.00014598,2]
[422209653,1778698239000,-635.18083882,0.00014598,2]
[422209650,1778698239000,-500.0,0.00014598,2]
[422209649,1778698239000,-500.0,0.00014598,2]
[422209647,1778698239000,-500.0,0.00014598,2]
[422209644,1778698239000,-500.0,0.00014598,2]
[422209646,1778698239000,-500.0,0.00014598,2]
[422209651,1778698239000,-500.0,0.00014598,2]
[422209716,1778698240000,-500.0,0.0001485,2]
[422209722,1778698240000,-335.0,0.00014861,2]
[422209714,1778698240000,-8664.72719946,0.0001485,2]
[422209715,1778698240000,-1247.82977324,0.0001485,2]
[422209718,1778698240000,-256.09571324,0.0001485,2]
[422209717,1778698240000,-500.0,0.0001485,2]
[422209721,1778698240000,-500.0,0.00014856,2]
[422209724,1778698240000,-8168.16912627,0.000149,2]
[422209719,1778698240000,-335.0,0.00014855,2]
[422209728,1778698240000,-6032.24949674,0.000149,2]
[422209723,1778698240000,-335.0,0.00014881,2]
[422209725,1778698240000,-191.98255793,0.000149,2]
[422209726,1778698240000,-191.98255793,0.000149,2]
[422209727,1778698240000,-15253.59871753,0.000149,2]
[422209729,1778698240000,-9693.25198622,0.000149,2]
[422209730,1778698240000,-263.40146376,0.000149,2]
[422209713,1778698240000,-335.0,0.00014847,2]
[422209732,1778698240000,-335.0,0.00014901,2]
[422209720,1778698240000,-8168.16912627,0.00014855,2]
[422209712,1778698240000,-15253.59871753,0.00014845,2]
[422209699,1778698240000,-500.0,0.00014792,2]
[422209709,1778698240000,-150.0,0.00014836,2]
[422209734,1778698240000,-335.0,0.00014919,2]
[422209690,1778698240000,-789.4,0.00014775,2]
[422209691,1778698240000,-420.0,0.00014783,2]
[422209692,1778698240000,-15253.59871753,0.0001479,2]
[422209693,1778698240000,-313.0427971,0.00014791,2]
[422209695,1778698240000,-1672.61888549,0.00014791,2]
[422209696,1778698240000,-310.82073659,0.00014791,2]
[422209697,1778698240000,-501.26891246,0.00014792,2]
[422209698,1778698240000,-500.0,0.00014792,2]
[422209700,1778698240000,-500.0,0.00014792,2]
[422209704,1778698240000,-1680.0,0.00014794,2]
[422209703,1778698240000,-500.0,0.00014792,2]
[422209701,1778698240000,-500.81977375,0.00014792,2]
[422209702,1778698240000,-500.2665976,0.00014792,2]
[422209705,1778698240000,-344.25,0.000148,2]
[422209707,1778698240000,-6032.24949674,0.00014826,2]
[422209710,1778698240000,-335.0,0.00014839,2]
[422209708,1778698240000,-2000.0,0.00014834,2]
[422209706,1778698240000,-484.46,0.00014801,2]
[422209711,1778698240000,-335.0,0.00014842,2]
[422209731,1778698240000,-243.05971162,0.000149,2]
[422209741,1778698240000,-335.0,0.00014969,2]
[422209736,1778698240000,-335.0,0.00014935,2]
[422209760,1778698240000,-703.0,0.00014998,2]
[422209758,1778698240000,-500.0,0.00014997,2]
[422209763,1778698240000,-500.0,0.00014999,2]
[422209761,1778698240000,-978.62,0.00014998,2]
[422209762,1778698240000,-500.0,0.00014999,2]
[422209764,1778698240000,-500.0,0.00014999,2]
[422209766,1778698240000,-500.0,0.00014999,2]
[422209767,1778698240000,-500.0,0.00014999,2]
[422209759,1778698240000,-500.0,0.00014997,2]
[422209765,1778698240000,-500.0,0.00014999,2]
[422209769,1778698240000,-150.0,0.00014999,2]
[422209772,1778698240000,-300.0,0.00014999,2]
[422209770,1778698240000,-300.0,0.00014999,2]
[422209775,1778698240000,-8290130.56382705,0.00015,2]
[422209771,1778698240000,-300.0,0.00014999,2]
[422209774,1778698240000,-431.75915854,0.00014999,2]
[422209773,1778698240000,-300.0,0.00014999,2]
[422209776,1778698240000,-800.30798175,0.00015,2]
[422209768,1778698240000,-407.4467712,0.00014999,2]
[422209757,1778698240000,-500.0,0.00014997,2]
[422209756,1778698240000,-500.0,0.00014997,2]
[422209753,1778698240000,-342.97,0.00014997,2]
[422209735,1778698240000,-335.0,0.00014928,2]
[422209737,1778698240000,-335.0,0.00014939,2]
[422209739,1778698240000,-335.0,0.00014952,2]
[422209738,1778698240000,-335.0,0.0001495,2]
[422209742,1778698240000,-335.0,0.00014975,2]
[422209740,1778698240000,-243.0,0.00014964,2]
[422209778,1778698240000,-845.42727251,0.00015,2]
[422209743,1778698240000,-231.94208573,0.00014986,2]
[422209745,1778698240000,-251.47180583,0.00014986,2]
[422209749,1778698240000,-157.71696169,0.0001499,2]
[422209746,1778698240000,-150.0,0.00014986,2]
[422209748,1778698240000,-157.71696169,0.0001499,2]
[422209747,1778698240000,-259.16287403,0.00014986,2]
[422209744,1778698240000,-158.63356966,0.00014986,2]
[422209750,1778698240000,-335.0,0.00014993,2]
[422209751,1778698240000,-335.0,0.00014994,2]
[422209752,1778698240000,-151.0,0.00014997,2]
[422209755,1778698240000,-417.05422085,0.00014997,2]
[422209754,1778698240000,-280.62,0.00014997,2]
[422209777,1778698240000,-289.5,0.00015,2]
[422209733,1778698240000,-335.0,0.00014918,2]
[422209779,1778698241000,-62657.84549931,0.00015,2]
[422209780,1778698241000,-40452.92053555,0.00015,2]
[422209789,1778698243000,-309.41783969,0.00015,2]
[422209788,1778698243000,-2650.96523101,0.00015,2]
[422209787,1778698243000,-661.03999474,0.00015,2]
[422209795,1778698246000,-2055.92021578,0.00015,2]
[422209794,1778698246000,-9436.93055684,0.00015,2]
[422209793,1778698246000,-1339.50953301,0.00015,2]
[422209792,1778698246000,-504.0,0.00015,2]
[422209797,1778698313000,1345.86994396,0.00027397,120]
[422209803,1778698952000,3069.02687059,8e-05,2]
[422209804,1778699173000,-262.49540751,0.000101,2]
[422209806,1778699219000,-215.28041338,0.000107,2]
[422209819,1778699432000,-194.0,0.00013487,2]
[422209827,1778699432000,-251.47180583,0.00013488,2]
[422209834,1778699432000,-166.66,0.00013699,2]
[422209835,1778699432000,-200.0,0.00013699,2]
[422209844,1778699432000,-150.0,0.00013862,2]
[422209833,1778699432000,-2500.0,0.00013699,2]
[422209841,1778699432000,-9999.99,0.00013836,2]
[422209837,1778699432000,-200.0,0.0001377,2]
[422209838,1778699432000,-150.99,0.00013836,2]
[422209843,1778699432000,-166.66,0.00013836,2]
[422209822,1778699432000,-150.0,0.00013488,2]
[422209840,1778699432000,-4541.43,0.00013836,2]
[422209842,1778699432000,-6045.05,0.00013836,2]
[422209836,1778699432000,-345.54391253,0.0001377,2]
[422209824,1778699432000,-223.86450723,0.00013488,2]
[422209829,1778699432000,-150.0,0.00013488,2]
[422209823,1778699432000,-150.0,0.00013488,2]
[422209820,1778699432000,-1200.0,0.00013487,2]
[422209831,1778699432000,-150.0,0.00013488,2]
[422209817,1778699432000,-999.32816344,0.00013417,2]
[422209818,1778699432000,-2000.0,0.00013427,2]
[422209839,1778699432000,-999.99,0.00013836,2]
[422209816,1778699432000,-1012.33867592,0.00013417,2]
[422209812,1778699432000,-11.13886941,0.00013406,2]
[422209815,1778699432000,-155.60113059,0.00013406,2]
[422209811,1778699432000,-164.6,0.00013055,2]
[422209808,1778699432000,-652.39028003,0.0001177,2]
[422209809,1778699432000,-3823.15770812,0.0001177,2]
[422209810,1778699432000,-524.45201185,0.0001177,2]
[422209807,1778699432000,-55.85395699,0.000107,2]
[422209821,1778699432000,-300.0,0.00013487,2]
[422209846,1778699432000,-5827.70440413,0.00013916,2]
[422209870,1778699432000,-500.0,0.00014116,2]
[422209848,1778699432000,-982.80761298,0.00013916,2]
[422209845,1778699432000,-150.0,0.00013915,2]
[422209877,1778699432000,-500.0,0.00014116,2]
[422209878,1778699432000,-500.0,0.00014116,2]
[422209876,1778699432000,-500.0,0.00014116,2]
[422209871,1778699432000,-500.0,0.00014116,2]
[422209872,1778699432000,-500.0,0.00014116,2]
[422209869,1778699432000,-500.0,0.00014116,2]
[422209875,1778699432000,-500.0,0.00014116,2]
[422209873,1778699432000,-500.0,0.00014116,2]
[422209874,1778699432000,-417.05422085,0.00014116,2]
[422209866,1778699432000,-151.0,0.00014114,2]
[422209867,1778699432000,-500.0,0.00014115,2]
[422209863,1778699432000,-2256.8907,0.00014017,2]
[422209864,1778699432000,-3826.7364,0.00014017,2]
[422209862,1778699432000,-1660.457,0.00014017,2]
[422209868,1778699432000,-500.0,0.00014116,2]
[422209861,1778699432000,-5000.0,0.00014017,2]
[422209849,1778699432000,-60897.33471074,0.00013916,2]
[422209859,1778699432000,-182.466,0.00014015,2]
[422209847,1778699432000,-77612.61257909,0.00013916,2]
[422209852,1778699432000,-5901.9481,0.00013917,2]
[422209850,1778699432000,-14178.5914727,0.00013916,2]
[422209851,1778699432000,-2082.54432036,0.00013916,2]
[422209854,1778699432000,-166.66,0.00013973,2]
[422209853,1778699432000,-445.37,0.00013939,2]
[422209857,1778699432000,-250.0,0.00014,2]
[422209855,1778699432000,-152.85,0.00013973,2]
[422209858,1778699432000,-2132.443,0.00014015,2]
[422209856,1778699432000,-150.0,0.00013987,2]
[422209860,1778699432000,-6653.6504,0.00014017,2]
[422209865,1778699432000,-166.66,0.0001411,2]
[422209899,1778699433000,-500.0,0.00014329,2]
[422209898,1778699433000,-7260.74664883,0.00014269,2]
[422209900,1778699433000,-33166.2013,0.00014359,2]
[422209901,1778699433000,-2000.0,0.00014359,2]
[422209903,1778699433000,-166.66,0.00014384,2]
[422209902,1778699433000,-350.0,0.0001436,2]
[422209913,1778699433000,-150.0,0.0001443,2]
[422209906,1778699433000,-167.64,0.00014428,2]
[422209908,1778699433000,-150.0,0.0001443,2]
[422209907,1778699433000,-150.0,0.0001443,2]
[422209909,1778699433000,-260.0,0.0001443,2]
[422209910,1778699433000,-150.0,0.0001443,2]
[422209897,1778699433000,-166.66,0.00014247,2]
[422209904,1778699433000,-500.0,0.0001439,2]
[422209896,1778699433000,-150.0,0.00014237,2]
[422209879,1778699433000,-500.0,0.00014116,2]
[422209895,1778699433000,-1354.80129696,0.00014208,2]
[422209880,1778699433000,-500.0,0.00014116,2]
[422209911,1778699433000,-150.0,0.0001443,2]
[422209885,1778699433000,-500.0,0.00014116,2]
[422209882,1778699433000,-500.0,0.00014116,2]
[422209881,1778699433000,-500.0,0.00014116,2]
[422209884,1778699433000,-500.0,0.00014116,2]
[422209886,1778699433000,-500.0,0.00014116,2]
[422209883,1778699433000,-500.0,0.00014116,2]
[422209887,1778699433000,-500.0,0.00014116,2]
[422209890,1778699433000,-500.0,0.00014116,2]
[422209891,1778699433000,-256.09571324,0.00014116,2]
[422209889,1778699433000,-500.0,0.00014116,2]
[422209888,1778699433000,-500.0,0.00014116,2]
[422209892,1778699433000,-500.0,0.00014116,2]
[422209894,1778699433000,-7260.74664883,0.00014143,2]
[422209893,1778699433000,-507.77368398,0.00014116,2]
[422209912,1778699433000,-150.0,0.0001443,2]
[422209905,1778699433000,-7260.74664883,0.00014395,2]
[422209915,1778699433000,-150.0,0.0001443,2]
[422209939,1778699433000,-1007.0,0.00014726,2]
[422209935,1778699433000,-1007.0,0.00014726,2]
[422209937,1778699433000,-1007.0,0.00014726,2]
[422209934,1778699433000,-1007.0,0.00014726,2]
[422209938,1778699433000,-1007.0,0.00014726,2]
[422209940,1778699433000,-1007.0,0.00014726,2]
[422209942,1778699433000,-789.4,0.00014728,2]
[422209944,1778699433000,-375.39,0.00014758,2]
[422209945,1778699433000,-335.0,0.00014761,2]
[422209943,1778699433000,-330.0,0.00014757,2]
[422209946,1778699433000,-7260.74664883,0.00014774,2]
[422209948,1778699433000,-486.32291344,0.00014787,2]
[422209947,1778699433000,-500.0,0.00014787,2]
[422209949,1778699433000,-13.67708656,0.00014787,2]
[422209914,1778699433000,-150.0,0.0001443,2]
[422209936,1778699433000,-1007.0,0.00014726,2]
[422209932,1778699433000,-1007.0,0.00014726,2]
[422209941,1778699433000,-568.188,0.00014726,2]
[422209933,1778699433000,-1007.0,0.00014726,2]
[422209917,1778699433000,-250.0,0.0001443,2]
[422209931,1778699433000,-164.6,0.00014687,2]
[422209916,1778699433000,-150.0,0.0001443,2]
[422209918,1778699433000,-1872.07836152,0.00014468,2]
[422209920,1778699433000,-310.82073659,0.00014468,2]
[422209922,1778699433000,-407.4467712,0.00014498,2]
[422209923,1778699433000,-375.39,0.00014507,2]
[422209919,1778699433000,-483.45695401,0.00014468,2]
[422209926,1778699433000,-500.0,0.00014592,2]
[422209924,1778699433000,-7260.74664883,0.00014522,2]
[422209927,1778699433000,-150.0,0.00014612,2]
[422209925,1778699433000,-500.0,0.00014592,2]
[422209928,1778699433000,-375.39,0.00014633,2]
[422209921,1778699433000,-150.0,0.00014487,2]
[422209930,1778699433000,-509.49,0.00014656,2]
[422209929,1778699433000,-7260.74664883,0.00014648,2]
[422209950,1778699434000,-500.0,0.00014787,2]
[422209952,1778699434000,-240.74100021,0.00014787,2]
[422209951,1778699434000,-500.0,0.00014787,2]
[422209996,1778699438000,-500.0,0.00014849,2]
[422209989,1778699438000,-500.0,0.00014849,2]
[422209986,1778699438000,-500.0,0.00014849,2]
[422209984,1778699438000,-500.0,0.00014849,2]
[422209982,1778699438000,-500.0,0.00014849,2]
[422209988,1778699438000,-500.0,0.00014849,2]
[422209985,1778699438000,-500.0,0.00014849,2]
[422209997,1778699438000,-342.97,0.0001485,2]
[422210009,1778699438000,-162.03980774,0.000149,2]
[422209995,1778699438000,-500.0,0.00014849,2]
[422209992,1778699438000,-500.0,0.00014849,2]
[422209990,1778699438000,-500.0,0.00014849,2]
[422209993,1778699438000,-500.0,0.00014849,2]
[422209994,1778699438000,-500.0,0.00014849,2]
[422209991,1778699438000,-500.0,0.00014849,2]
[422209999,1778699438000,-9912.5569727,0.0001485,2]
[422209980,1778699438000,-500.0,0.00014849,2]
[422209987,1778699438000,-500.0,0.00014849,2]
[422209981,1778699438000,-438.89473494,0.00014849,2]
[422209962,1778699438000,-2307321.69368904,0.00013916,2]
[422209975,1778699438000,-500.0,0.00014849,2]
[422209961,1778699438000,-30101.03951096,0.00013916,2]
[422209965,1778699438000,-500.0,0.00014787,2]
[422209964,1778699438000,-500.0,0.00014787,2]
[422209963,1778699438000,-259.25899979,0.00014787,2]
[422209966,1778699438000,-500.0,0.00014787,2]
[422209969,1778699438000,-327.0,0.00014841,2]
[422209967,1778699438000,-263.16091522,0.00014787,2]
[422209970,1778699438000,-335.0,0.00014847,2]
[422209968,1778699438000,-1680.0,0.00014835,2]
[422209971,1778699438000,-532.01436814,0.00014847,2]
[422209974,1778699438000,-500.0,0.00014849,2]
[422209972,1778699438000,-151.16087035,0.00014849,2]
[422209973,1778699438000,-500.0,0.00014849,2]
[422209979,1778699438000,-500.0,0.00014849,2]
[422209983,1778699438000,-500.0,0.00014849,2]
[422210001,1778699438000,-500.0,0.00014856,2]
[422209978,1778699438000,-500.0,0.00014849,2]
[422209976,1778699438000,-500.0,0.00014849,2]
[422210010,1778699438000,-18096.74849022,0.000149,2]
[422209977,1778699438000,-500.0,0.00014849,2]
[422210000,1778699438000,-162.03980776,0.00014854,2]
[422210038,1778699438000,-341.0,0.00014961,2]
[422210040,1778699438000,-335.0,0.00014965,2]
[422210042,1778699438000,-327.0,0.00014979,2]
[422210045,1778699438000,-231.94208573,0.00014986,2]
[422210047,1778699438000,-259.16287403,0.00014986,2]
[422210058,1778699438000,-164.59688049,0.0001499,2]
[422210060,1778699438000,-335.0,0.00014994,2]
[422210063,1778699438000,-150.0,0.00014999,2]
[422210051,1778699438000,-311.0,0.00014988,2]
[422210067,1778699438000,-500.0,0.00014999,2]
[422210074,1778699438000,-198.38578361,0.00014999,2]
[422210076,1778699438000,-500.0,0.00014999,2]